bitfinex-derivatives/quotes_ETHF0:USTF0_20250112
["timestamp","ask_amount","ask_price","bid_price","bid_amount"]
[1736684148713,0.4705,3257.2,3256.9,3.2078]
[1736684149021,0.21503,3257.1,3256.9,3.42284]
[1736684149318,0.21504,3257.0,3256.9,3.2078]
[1736684149521,0.4705,3257.2,3256.9,3.2078]
[1736684149714,0.68553,3257.2,3256.9,3.42284]
[1736684150016,0.4705,3257.2,3256.9,0.21504]
[1736684150216,0.21503,3257.1,3256.9,0.21504]
[1736684151019,0.21503,3257.1,3257.0,0.21504]
[1736684151215,0.21503,3257.1,3256.9,0.21504]
[1736684152520,0.4705,3257.2,3256.6,40.8]
[1736684152923,0.4705,3257.2,3257.1,0.21503]
[1736684153613,3.6783,3257.2,3256.6,40.8]
[1736684154022,3.6783,3257.2,3256.6,45.60976398]
[1736684154221,0.21505,3256.9,3256.7,0.21505]
[1736684154421,0.4821,3256.8,3256.7,0.21505]
[1736684154615,0.9452,3256.8,3256.7,0.21505]
[1736684157221,0.94637292,3256.8,3256.7,0.21505]
[1736684160619,0.46427292,3256.8,3256.7,0.21505]
[1736684161026,0.00117292,3256.8,3256.7,0.21505]
[1736684161825,0.00117292,3256.8,3256.7,5.02481398]
[1736684164026,0.00117292,3256.8,3256.7,5.9428926]
[1736684164234,0.4705,3257.2,3257.1,0.21503]
[1736684165226,0.21503,3257.1,3256.9,0.21504]
[1736684165432,0.4565,3257.1,3256.7,12.94212528]
[1736684165619,0.4565,3257.1,3256.8,40.8]
[1736684165820,0.9118,3257.2,3256.8,41.236]
[1736684166030,0.9118,3257.2,3257.1,0.21503]
[1736684167626,0.4705,3257.2,3257.1,0.21503]
[1736684168328,0.4774,3257.4,3256.9,8.01926642]
[1736684168527,0.9183,3257.4,3257.3,0.21502]
[1736684173031,6.82857501,3257.7,3257.1,4.81146642]
[1736684173336,0.4689,3257.6,3257.5,0.215]
[1736684174531,0.4689,3257.6,3257.3,3.2078]
[1736684174726,0.4411,3257.5,3257.4,0.21501]
[1736684176730,0.4689,3257.6,3257.5,0.215]
[1736684177230,0.4689,3257.6,3257.3,3.2078]
[1736684177436,0.4689,3257.6,3257.5,0.215]
[1736684178137,4.08967501,3257.6,3257.5,0.215]
[1736684180130,0.4689,3257.6,3257.5,0.215]
[1736684185436,0.4689,3257.6,3257.5,5.02646642]
[1736684186639,0.4689,3257.6,3257.5,0.215]
[1736684193038,0.6839,3257.6,3257.4,5.02647642]
[1736684193232,0.4689,3257.6,3257.4,4.81146642]
[1736684193443,0.4689,3257.6,3257.3,3.2078]
[1736684193644,0.6839,3257.6,3257.4,0.21501]
[1736684194038,0.4689,3257.6,3257.4,0.21501]
[1736684194244,0.4689,3257.6,3257.3,3.2078]
[1736684194441,0.4689,3257.6,3257.5,0.215]
[1736684195143,0.4689,3257.6,3257.3,3.2078]
[1736684195346,0.4689,3257.6,3257.5,0.215]
[1736684196747,4.08967501,3257.6,3257.5,0.215]
[1736684201054,0.4689,3257.6,3257.5,0.215]
[1736684204144,0.4689,3257.6,3257.5,3.4228]
[1736684206045,0.4689,3257.6,3257.5,0.215]
[1736684206246,0.4689,3257.6,3257.5,3.4228]
[1736684206452,0.4689,3257.6,3257.5,8.23426642]
[1736684207343,0.4486,3257.8,3257.5,8.01926642]
[1736684207549,0.4486,3257.8,3257.7,0.21499]
[1736684210148,4.07096492,3257.8,3257.7,0.21499]
[1736684211852,4.07096492,3257.8,3257.5,3.2078]
[1736684212049,0.21499,3257.7,3257.5,3.2078]
[1736684212253,4.07096492,3257.8,3257.5,3.2078]
[1736684212254,0.215,3257.6,3257.5,3.2078]
[1736684212549,0.215,3257.7,3257.5,3.4228]
[1736684213153,0.215,3257.7,3257.5,3.2078]
[1736684213355,0.215,3257.6,3257.5,3.2078]
[1736684213952,8.00812392,3257.7,3257.2,4.81146642]
[1736684214252,0.4565,3257.5,3257.2,4.81146642]
[1736684214454,0.21502,3257.3,3257.2,4.81146642]
[1736684214852,8.22314392,3257.3,3257.0,0.21503]
[1736684215154,0.9582,3257.2,3257.1,0.21503]
[1736684216252,4.58266524,3257.2,3257.1,0.21503]
[1736684218354,0.9582,3257.2,3257.1,12.94568592]
[1736684219659,0.9582,3257.2,3257.0,0.21503]
[1736684220056,0.9582,3257.2,3256.9,7.21428268]
[1736684220258,0.9582,3257.2,3257.1,0.21503]
[1736684220662,0.9582,3257.2,3256.9,7.21428268]
[1736684220862,0.9582,3257.2,3257.1,0.21503]
[1736684223561,0.9582,3257.2,3257.1,5.02747056]
[1736684224667,4.08096524,3257.5,3257.1,4.81244056]
[1736684224862,3.62446524,3257.5,3257.4,0.21501]
[1736684225566,3.62446524,3257.5,3257.4,41.01501]
[1736684225965,3.62446524,3257.5,3257.4,42.21201]
[1736684226166,3.6905,3257.7,3257.4,47.72548806]
[1736684226468,3.6905,3257.7,3257.6,0.215]
[1736684226767,3.2078,3257.7,3257.6,0.215]
[1736684227969,0.4669,3258.0,3257.9,0.21498]
[1736684228566,0.4669,3258.0,3257.9,41.01498]
[1736684230465,0.4669,3258.0,3257.9,0.21498]
[1736684230872,4.09136524,3258.0,3257.9,0.21498]
[1736684237874,0.4669,3258.0,3257.9,0.21498]
[1736684241572,0.9148,3258.1,3258.0,0.21497]
[1736684244776,1.12977,3258.1,3257.9,5.02309827]
[1736684244982,1.12977,3258.1,3257.9,4.08372827]
[1736684244983,0.21497,3258.0,3257.9,4.08372827]
[1736684245875,4.1226,3258.1,3257.3,48.01425976]
[1736684245876,7.74706524,3258.1,3257.3,48.01425976]
[1736684246071,0.21498,3257.8,3257.6,0.21499]
[1736684246772,0.21499,3257.7,3257.5,0.215]
[1736684246972,0.4732,3257.9,3257.3,40.8]
[1736684246973,0.21499,3257.8,3257.3,40.8]
[1736684247173,0.4732,3257.9,3257.3,40.8]
[1736684247478,0.215,3257.7,3257.4,0.21501]
[1736684247675,0.21501,3257.5,3257.3,41.01501]
[1736684247989,0.69351,3257.4,3257.2,7.42927976]
[1736684248190,0.9413,3257.3,3257.2,7.21425976]
[1736684248479,1.15632,3257.3,3257.2,40.8]
[1736684249073,0.9413,3257.3,3256.9,8.40825976]
[1736684249273,0.21503,3257.2,3256.9,7.42929976]
[1736684249473,0.21503,3257.2,3256.9,0.21504]
[1736684249670,0.21503,3257.2,3257.0,40.8]
[1736684249881,1.15632,3257.3,3257.0,41.01504]
[1736684250277,0.21503,3257.2,3257.0,40.8]
[1736684252584,0.9413,3257.3,3257.0,40.8]
[1736684252979,0.21503,3257.1,3257.0,40.8]
[1736684253283,0.9413,3257.3,3256.7,3.2078]
[1736684253782,1.15632,3257.3,3256.9,0.21504]
[1736684254085,3.62446524,3257.1,3256.7,44.0078]
[1736684254479,3.62446524,3257.1,3256.9,0.21504]
[1736684254886,3.62446524,3257.0,3256.9,0.21504]
[1736684255980,4.56576524,3257.3,3256.8,0.462]
[1736684256284,4.56576524,3257.3,3257.2,0.21502]
[1736684257181,3.62446524,3257.3,3257.2,0.21502]
[1736684257686,4.10296524,3257.4,3257.3,0.21502]
[1736684257986,3.62446524,3257.4,3257.3,0.21502]
[1736684258782,3.62446524,3257.4,3257.2,0.21502]
[1736684258984,3.62446524,3257.4,3257.1,1.194]
[1736684259284,0.21502,3257.3,3257.1,1.194]
[1736684259875,0.21503,3257.2,3256.9,0.21504]
[1736684260082,0.21502,3257.2,3256.8,0.21505]
[1736684260285,0.21502,3257.2,3256.9,0.21504]
[1736684260685,0.475,3257.5,3257.0,0.21503]
[1736684260686,0.21502,3257.3,3257.0,0.21503]
[1736684261188,0.21502,3257.3,3256.6,8.87715976]
[1736684261479,0.21502,3257.3,3257.0,0.21503]
[1736684261685,0.21502,3257.3,3257.1,0.21503]
[1736684262583,0.475,3257.5,3256.6,1.6629]
[1736684262882,0.475,3257.5,3257.2,0.21502]
[1736684262883,0.69001,3257.5,3257.2,0.21502]
[1736684263078,0.475,3257.5,3257.2,0.21502]
[1736684263279,0.21501,3257.4,3257.2,0.21502]
[1736684264090,0.475,3257.5,3256.6,1.6629]
[1736684264385,0.475,3257.5,3257.1,0.21503]
[1736684264386,0.21502,3257.4,3257.1,0.21503]
[1736684266397,0.21502,3257.4,3256.6,1.6629]
[1736684266695,0.21502,3257.4,3257.2,0.21502]
[1736684266892,0.21502,3257.3,3257.0,0.21503]
[1736684267095,0.21501,3257.4,3257.1,0.21503]
[1736684267399,0.475,3257.5,3257.1,0.21503]
[1736684267598,0.21501,3257.4,3257.1,0.21503]
[1736684269193,0.21501,3257.4,3257.2,0.21502]
[1736684269397,4.09946524,3257.5,3256.6,1.6629]
[1736684269597,4.09946524,3257.5,3257.3,0.21502]
[1736684269801,4.09946524,3257.5,3256.6,1.6629]
[1736684270001,4.09946524,3257.5,3257.4,0.21501]
[1736684270299,4.09946524,3257.5,3257.3,0.21501]
[1736684271503,4.09946524,3257.5,3257.4,0.21501]
[1736684271901,4.31447524,3257.5,3257.0,0.4795]
[1736684272901,4.09946524,3257.5,3257.0,0.4795]
[1736684273104,0.21501,3257.4,3257.2,0.21502]
[1736684273403,4.31447524,3257.5,3257.2,0.21502]
[1736684274096,0.21501,3257.4,3257.2,0.21502]
[1736684274296,7.52227524,3257.5,3257.3,0.21502]
[1736684274497,7.30726524,3257.5,3256.8,3.6496]
[1736684274899,7.52227524,3257.5,3257.3,0.21502]
[1736684275602,3.89781,3257.5,3257.3,0.21502]
[1736684276103,3.89781,3257.5,3257.4,0.21501]
[1736684276104,3.6828,3257.5,3257.4,0.21501]
[1736684277101,0.475,3257.5,3257.4,0.21501]
[1736684280801,0.69,3257.5,3257.4,0.21501]
[1736684283508,5.49032392,3257.5,3257.4,0.21501]
[1736684284102,5.27532392,3257.5,3257.4,0.21501]
[1736684284810,5.49032392,3257.5,3257.4,0.21501]
[1736684285006,0.21502,3257.3,3257.2,0.21502]
[1736684285804,5.27532392,3257.5,3256.8,3.6844]
[1736684286104,0.21502,3257.3,3257.2,0.21502]
[1736684287409,4.80032392,3257.4,3256.8,3.6844]
[1736684287606,0.21502,3257.3,3256.8,3.6844]
[1736684287805,0.21502,3257.3,3257.2,0.21502]
[1736684289313,5.01534392,3257.3,3257.2,0.21502]
[1736684290714,3.62317016,3257.3,3256.8,7.69085976]
[1736684291007,3.83819016,3257.3,3257.1,0.21503]
[1736684291412,3.83819016,3257.3,3256.8,7.69085976]
[1736684291608,3.83819016,3257.3,3257.1,0.21503]
[1736684291814,3.62317016,3257.2,3257.1,0.21503]
[1736684293014,5.01534392,3257.3,3257.1,0.21503]
[1736684293416,4.80032392,3257.3,3257.2,0.21502]
[1736684296716,4.80032392,3257.4,3257.3,0.21502]
[1736684298018,8.00812392,3257.5,3257.4,0.21501]
[1736684303421,8.00812392,3257.5,3257.2,0.945]
[1736684303727,8.00812392,3257.5,3257.1,7.21425976]
[1736684304028,0.21502,3257.2,3257.1,7.21425976]
[1736684305219,0.21502,3257.2,3256.9,9.87240992]
[1736684305220,5.05120874,3257.2,3256.9,0.21504]
[1736684305425,0.4707,3257.1,3256.9,0.21504]
[1736684306419,4.0978419,3257.1,3257.0,12.93125808]
[1736684306920,4.3128719,3257.1,3257.0,12.93125808]
[1736684307126,7.5206719,3257.1,3257.0,12.93125808]
[1736684309123,3.89353,3257.1,3256.6,12.07299628]
[1736684309328,0.21506,3256.6,3256.5,0.0122]
[1736684309731,1.54636,3256.6,3256.5,0.0122]
[1736684312827,4.75416,3256.6,3256.5,0.0122]
[1736684313022,8.37661725,3256.6,3256.5,0.0122]
[1736684314230,9.3727875,3256.6,3255.9,0.21511]
[1736684314427,0.2151,3256.0,3255.9,0.21511]
[1736684314628,0.2151,3256.1,3256.0,0.2151]
[1736684315731,0.2151,3256.1,3255.9,0.21511]
[1736684315932,0.4556,3256.0,3255.9,0.21511]
[1736684316129,0.6707,3256.0,3255.8,3.2078]
[1736684316330,0.6707,3256.0,3255.8,3.42291]
[1736684317430,0.4805,3255.9,3255.8,3.42291]
[1736684317728,0.69561,3255.9,3255.8,3.2078]
[1736684318437,0.4805,3255.9,3255.8,3.2078]
[1736684318737,0.69561,3255.9,3255.8,3.2078]
[1736684319431,0.4805,3255.9,3255.8,3.2078]
[1736684319736,0.4805,3255.9,3255.8,3.42292]
[1736684320529,3.62077722,3256.4,3255.8,3.2078]
[1736684320725,3.62077722,3256.4,3256.3,0.21508]
[1736684321433,7.28707722,3256.6,3256.5,0.21507]
[1736684322434,6.82857722,3256.6,3256.5,0.21507]
[1736684322833,3.2078,3256.6,3256.5,0.21507]
[1736684323031,3.83581722,3257.0,3256.9,0.21504]
[1736684323032,3.62077722,3257.0,3256.9,0.21504]
[1736684323938,2.17137722,3257.0,3256.9,5.21504]
[1736684324342,2.15887722,3257.0,3256.9,5.21504]
[1736684324546,0.4444,3257.7,3256.9,5.0]
[1736684324743,0.4444,3257.7,3257.6,0.215]
[1736684325039,4.8336875,3257.9,3257.6,40.8]
[1736684325239,4.8336875,3257.9,3257.7,0.21499]
[1736684325442,3.86687,3258.1,3257.7,0.21499]
[1736684326141,5.2810875,3258.4,3257.7,3.2078]
[1736684326340,5.2810875,3258.4,3258.2,0.21496]
[1736684326542,5.2810875,3258.4,3258.1,0.21496]
[1736684326740,5.2810875,3258.4,3257.7,3.2078]
[1736684326943,0.66235,3258.4,3258.0,0.21497]
[1736684328637,0.21495,3258.3,3257.9,0.21497]
[1736684328838,0.21496,3258.2,3257.8,0.21498]
[1736684329045,0.4474,3258.4,3257.7,3.2078]
[1736684329248,0.21497,3258.1,3257.7,3.42279]
[1736684329745,0.4474,3258.4,3257.7,3.2078]
[1736684330044,0.21496,3258.2,3257.8,0.21498]
[1736684330346,0.21497,3258.1,3257.7,3.42279]
[1736684330642,0.64997,3258.1,3257.7,3.42279]
[1736684331145,0.435,3258.1,3257.8,0.21498]
[1736684331539,0.64997,3258.1,3257.7,3.42279]
[1736684332150,0.4437,3258.0,3257.7,3.2078]
[1736684332347,0.4437,3258.0,3257.9,0.21498]
[1736684332750,0.4437,3258.0,3257.8,0.21498]
[1736684334047,0.4437,3258.0,3257.9,0.21498]
[1736684335744,0.4437,3258.0,3257.8,0.21498]
[1736684336553,0.4437,3258.0,3257.7,3.42279]
[1736684336851,0.4437,3258.0,3257.7,3.2078]
[1736684337352,0.4437,3258.0,3257.8,0.21498]
[1736684338149,0.4437,3258.0,3257.9,0.21498]
[1736684338751,0.435,3258.1,3257.7,3.2078]
[1736684338951,0.4474,3258.4,3257.7,3.2078]
[1736684339252,0.4474,3258.4,3258.3,0.21495]
[1736684342052,3.2078,3258.6,3258.1,1.197]
[1736684342254,0.4803,3258.8,3258.2,3.7452]
[1736684342452,0.4803,3258.8,3258.7,0.21492]
[1736684345157,0.69522,3258.8,3258.5,0.21494]
[1736684345355,0.69522,3258.8,3258.6,0.21493]
[1736684345563,0.4803,3258.8,3258.6,0.21493]
[1736684346653,0.21493,3258.7,3258.2,3.45372127]
[1736684346852,0.21493,3258.7,3258.4,0.21494]
[1736684347059,0.4573,3258.6,3258.2,3.45372127]
[1736684347357,0.67223,3258.6,3258.3,0.21495]
[1736684347555,0.67223,3258.6,3258.4,0.21494]
[1736684347556,0.455,3258.5,3258.4,0.21494]
[1736684350959,0.455,3258.5,3258.2,44.0078]
[1736684351159,0.455,3258.5,3258.4,0.21494]
[1736684352364,0.455,3258.5,3258.2,44.0078]
[1736684352560,0.66994,3258.5,3258.2,44.22276]
[1736684352754,0.455,3258.5,3258.2,44.0078]
[1736684352956,0.21495,3258.4,3258.2,44.0078]
[1736684353555,0.455,3258.5,3258.2,44.0078]
[1736684353761,0.455,3258.5,3258.2,44.22275]
[1736684354078,0.21495,3258.3,3258.2,44.0078]
[1736684354275,0.21495,3258.4,3258.2,44.22276]
[1736684354880,0.66994,3258.5,3258.3,0.21495]
[1736684356179,0.455,3258.5,3258.3,0.21495]
[1736684356479,0.455,3258.5,3258.2,44.0078]
[1736684356671,0.21495,3258.4,3258.3,0.21495]
[1736684357579,0.455,3258.5,3258.2,44.0078]
[1736684357878,0.455,3258.5,3258.4,0.21494]
[1736684362085,0.455,3258.5,3258.2,44.0078]
[1736684362285,0.66994,3258.5,3258.3,0.21495]
[1736684363872,0.21495,3258.3,3258.2,44.0078]
[1736684365075,0.21495,3258.3,3258.2,3.2078]
[1736684365282,0.21495,3258.3,3258.2,2.4834]
[1736684367484,0.21495,3258.3,3258.2,2.69836]
[1736684368086,0.21495,3258.3,3258.2,2.4834]
[1736684369188,0.21495,3258.3,3258.2,2.69836]
[1736684369786,0.21495,3258.3,3258.2,0.21496]
[1736684370087,4.8336875,3258.4,3257.9,3.2078]
[1736684370278,6.71204938,3258.5,3257.9,3.74524]
[1736684370480,6.71204938,3258.5,3258.4,0.21494]
[1736684371587,6.49710938,3258.5,3257.9,3.2078]
[1736684371789,0.21496,3258.3,3258.2,0.21495]
[1736684372188,6.49710938,3258.5,3257.9,3.2078]
[1736684372382,0.4352,3258.2,3257.9,3.2078]
[1736684372690,0.4715,3258.1,3258.0,0.21497]
[1736684374297,5.29950838,3258.1,3258.0,0.21497]
[1736684377992,5.29950838,3258.1,3257.9,3.2078]
[1736684378184,0.451,3258.0,3257.9,3.42278]
[1736684378993,0.451,3258.0,3257.9,3.2078]
[1736684379187,0.66597,3258.0,3257.9,3.2078]
[1736684381290,0.21499,3257.7,3257.6,5.00465637]
[1736684381497,0.21497,3258.1,3257.6,7.99746637]
[1736684381800,0.21497,3258.1,3257.8,0.21498]
[1736684381992,1.14307,3258.1,3257.8,0.21498]
[1736684384799,0.21497,3258.0,3257.8,0.21498]
[1736684385202,0.21497,3258.0,3257.7,46.03236637]
[1736684385904,0.21497,3258.0,3257.7,46.24735637]
[1736684386501,0.21497,3258.0,3257.8,0.21498]
[1736684387602,4.54907004,3258.1,3257.7,41.2427]
[1736684387793,0.21498,3258.0,3257.8,0.21498]
[1736684389104,4.54907004,3258.1,3257.7,40.8]
[1736684389401,3.62097004,3258.0,3257.7,40.8]
[1736684389704,3.83594004,3258.0,3257.8,0.21498]
[1736684391898,0.21498,3257.9,3257.7,41.01499]
[1736684392099,0.4543,3257.8,3257.7,0.21499]
[1736684395712,5.49728838,3257.8,3257.6,41.01499]
[1736684396010,0.4796,3257.7,3257.6,41.015]
[1736684396800,0.69459,3257.7,3257.6,40.8]
[1736684397007,0.69459,3257.7,3257.5,0.215]
[1736684397008,5.52259838,3257.7,3257.5,0.215]
[1736684397214,0.6863,3257.6,3257.5,0.215]
[1736684397615,0.6863,3257.6,3257.3,40.8]
[1736684397616,0.4713,3257.6,3257.3,40.8]
[1736684397812,0.4713,3257.6,3257.5,0.215]
[1736684400813,6.52170938,3257.7,3257.3,44.0078]
[1736684401114,6.52170938,3257.7,3257.6,0.215]
[1736684401319,6.04210938,3257.7,3257.6,0.215]
[1736684401712,3.62850938,3257.7,3257.6,0.215]
[1736684402012,0.4788752,3257.7,3257.6,5.215]
[1736684402620,3.62150225,3257.9,3257.8,0.21498]
[1736684402915,3.62150225,3257.9,3257.8,4.62678]
[1736684403217,3.62150225,3257.9,3257.8,50.42678]
[1736684403424,1e-08,3257.9,3257.8,50.42678]
[1736684403717,0.40463387,3258.1,3258.0,0.21497]
[1736684404218,0.4792,3258.8,3258.7,0.21492]
[1736684404812,0.9461,3258.8,3258.6,1.41893]
[1736684405317,1.16102,3258.8,3258.6,6.00376739]
[1736684405517,0.9461,3258.8,3258.6,6.00376739]
[1736684406420,1.16102,3258.8,3258.6,1.204]
[1736684407923,0.9461,3258.8,3258.6,1.204]
[1736684408222,0.9461,3258.8,3258.6,1.41893]
[1736684408618,1.16102,3258.8,3258.6,1.204]
[1736684408924,0.9461,3258.8,3258.3,4.79976739]
[1736684409120,0.9461,3258.8,3258.6,0.21493]
[1736684409424,1.16102,3258.8,3258.5,0.21493]
[1736684410627,0.9461,3258.8,3258.3,4.79976739]
[1736684410822,0.21493,3258.7,3258.3,4.79976739]
[1736684411121,0.21493,3258.7,3258.4,0.21494]
[1736684411526,0.21493,3258.7,3258.5,0.21494]
[1736684412029,0.21494,3258.6,3258.2,3.2078]
[1736684412328,0.21495,3258.4,3258.2,3.42276]
[1736684412629,0.4681,3258.3,3258.2,3.42276]
[1736684412927,0.9491,3258.3,3258.2,3.42276]
[1736684415320,1.16405,3258.3,3258.2,3.2078]
[1736684415720,0.21497,3258.0,3257.9,0.21498]
[1736684415914,4.1569,3258.3,3257.5,0.53752]
[1736684416127,0.4359,3257.9,3257.5,0.53752]
[1736684416325,0.9285,3257.8,3257.6,40.8]
[1736684416628,0.9285,3257.8,3257.7,0.21499]
[1736684416818,0.4645,3257.8,3257.7,0.21499]
[1736684417127,0.4359,3257.9,3257.8,0.21498]
[1736684419933,0.4359,3257.9,3257.7,4.79976739]
[1736684419934,0.4359,3257.9,3257.7,5.01475739]
[1736684420827,0.4359,3257.9,3257.8,0.21498]
[1736684421227,0.4359,3257.9,3257.6,48.80756739]
[1736684421429,0.4359,3257.9,3257.7,0.21499]
[1736684421733,0.4359,3257.9,3257.8,0.21498]
[1736684425130,0.4359,3257.9,3257.7,0.21499]
[1736684425431,0.4359,3257.9,3257.8,0.21498]
[1736684428031,0.4359,3257.9,3257.7,5.01475739]
[1736684428330,0.65088,3257.9,3257.7,5.01475739]
[1736684429236,0.65088,3257.9,3257.7,0.21499]
[1736684429534,0.4359,3257.9,3257.6,45.59976739]
[1736684429727,0.21499,3257.7,3257.6,4.79976739]
[1736684430133,0.21499,3257.7,3257.4,41.01501]
[1736684430425,0.8784,3257.6,3257.4,41.01501]
[1736684430629,1.0934,3257.6,3257.4,41.01501]
[1736684430825,0.8784,3257.6,3257.5,0.215]
[1736684431227,0.4359,3257.9,3257.8,0.21498]
[1736684431425,0.9423,3258.3,3258.2,0.21496]
[1736684431632,0.9423,3258.3,3258.2,41.01496]
[1736684432440,0.4753,3258.3,3258.2,41.01496]
[1736684432938,3.2078,3258.5,3258.4,0.21494]
[1736684433531,3.2078,3258.9,3258.3,0.53739]
[1736684433727,3.2078,3258.9,3258.8,0.21492]
[1736684434132,6.97207635,3259.0,3258.9,0.21491]
[1736684434333,6.50507635,3259.0,3258.9,0.21491]
[1736684434832,0.4753,3259.0,3258.9,0.21491]
[1736684437238,0.4753,3259.0,3258.8,0.21491]
[1736684437442,0.4753,3259.0,3258.7,1.203]
[1736684437835,0.4753,3259.0,3258.8,0.21491]
[1736684438030,0.4753,3259.0,3258.7,1.203]
[1736684438237,0.4753,3259.0,3258.9,0.21491]
[1736684440539,0.4753,3259.0,3258.8,0.21491]
[1736684440740,0.4753,3259.0,3258.9,0.21491]
[1736684441738,0.4718,3259.3,3258.7,1.203]
[1736684441936,0.9454,3259.3,3259.2,0.21489]
[1736684444140,0.4736,3259.3,3259.2,0.21489]
[1736684447041,0.4736,3259.3,3259.0,3.2078]
[1736684447248,0.4736,3259.3,3259.1,0.21489]
[1736684448639,0.4736,3259.3,3258.7,1.203]
[1736684449050,0.4736,3259.3,3259.1,0.21489]
[1736684449550,0.4736,3259.3,3259.2,0.21489]
[1736684451051,0.4736,3259.3,3259.1,0.2149]
[1736684451252,0.4736,3259.3,3258.9,0.21491]
[1736684451549,0.4736,3259.3,3259.2,0.21489]
[1736684451745,0.4736,3259.3,3259.1,0.21489]
[1736684452545,0.4736,3259.3,3258.6,3.2078]
[1736684452745,0.2149,3259.2,3258.9,0.21491]
[1736684452946,0.6681,3259.1,3258.8,0.21491]
[1736684453348,0.4532,3259.1,3258.6,4.4108]
[1736684453548,0.4532,3259.1,3258.9,0.21491]
[1736684455053,0.6681,3259.1,3258.9,0.21491]
[1736684455250,0.4532,3259.1,3259.0,0.2149]
[1736684455456,3.661,3259.1,3259.0,0.2149]
[1736684455957,3.661,3259.1,3258.6,3.2078]
[1736684456545,3.8759,3259.1,3258.9,0.21491]
[1736684456754,3.661,3259.1,3259.0,0.2149]
[1736684457657,3.8759,3259.1,3258.9,0.21491]
[1736684457956,3.661,3259.1,3258.6,3.2078]
[1736684458151,3.8759,3259.1,3258.6,3.2078]
[1736684458351,3.8759,3259.1,3258.9,0.21491]
[1736684458756,0.4532,3259.1,3258.5,1.203]
[1736684458953,3.2078,3259.0,3258.5,1.203]
[1736684459159,3.2078,3259.0,3258.9,0.21491]
[1736684459358,0.4532,3259.1,3259.0,0.2149]
[1736684459561,0.6681,3259.1,3258.9,0.21491]
[1736684459757,0.6681,3259.1,3258.5,1.203]
[1736684460063,0.6681,3259.1,3258.8,0.21491]
[1736684460454,0.6681,3259.1,3258.9,0.21491]
[1736684460655,0.6681,3259.1,3258.8,0.21491]
[1736684461063,0.4532,3259.1,3258.8,0.21491]
[1736684461263,0.21491,3259.0,3258.8,0.21491]
[1736684461656,0.4509,3258.9,3258.8,0.21491]
[1736684464559,0.4532,3259.1,3259.0,0.2149]
[1736684465869,0.4703,3259.2,3259.1,0.2149]
[1736684467070,0.4736,3259.3,3259.2,0.21489]
[1736684467573,0.4736,3259.3,3259.2,41.01489]
[1736684472977,0.002,3259.5,3259.2,42.004]
[1736684473277,0.002,3259.5,3259.4,0.21488]
[1736684478681,0.21688,3259.5,3259.2,3.42269]
[1736684479372,0.21688,3259.5,3259.3,0.21488]
[1736684479373,0.002,3259.5,3259.3,0.21488]
[1736684479571,0.21687,3259.5,3259.2,3.42269]
[1736684479772,0.21687,3259.5,3259.3,0.21488]
[1736684479773,0.002,3259.5,3259.3,0.21488]
[1736684479971,0.21687,3259.5,3259.3,0.21488]
[1736684480178,0.002,3259.5,3259.3,0.21488]
[1736684480381,0.002,3259.5,3259.2,3.2078]
[1736684480583,0.002,3259.5,3259.3,0.21488]
[1736684481076,0.002,3259.5,3259.1,40.8]
[1736684481281,0.002,3259.5,3259.4,0.21488]
[1736684482579,0.002,3259.5,3259.1,40.8]
[1736684482977,0.21489,3259.2,3259.0,4.79976739]
[1736684483178,1.3568,3259.1,3259.0,4.79976739]
[1736684483479,1.3568,3259.1,3259.0,44.87526739]
[1736684483680,4.7795,3259.1,3259.0,1.56726739]
[1736684483880,4.5646,3259.1,3258.8,4.8054323]
[1736684484085,0.21491,3258.9,3258.8,4.8054323]
[1736684484882,4.5646,3259.1,3258.8,5.0203523]
[1736684484883,0.21491,3259.0,3258.8,5.0203523]
[1736684485081,6.02977635,3258.9,3258.8,0.21492]
[1736684485980,0.21491,3258.9,3258.8,0.21492]
[1736684486383,0.21491,3259.0,3258.8,0.21492]
[1736684486784,0.21491,3258.9,3258.8,0.21492]
[1736684488090,4.5646,3259.1,3258.8,0.21492]
[1736684488289,0.21491,3259.0,3258.8,0.21492]
[1736684488492,0.21491,3259.0,3258.9,0.21491]
[1736684488683,4.5646,3259.1,3258.7,0.21492]
[1736684488889,0.21492,3258.8,3258.4,0.4652]
[1736684489185,0.21492,3258.8,3258.7,0.21492]
[1736684489686,6.24629901,3258.9,3258.7,0.21492]
[1736684490390,6.03138901,3258.8,3258.7,0.21492]
[1736684490789,6.24630901,3258.8,3258.7,0.21492]
[1736684491181,6.24630901,3258.8,3258.6,0.21493]
[1736684491790,6.24630901,3258.8,3258.5,0.21493]
[1736684491987,0.21494,3258.6,3258.3,44.0078]
[1736684492179,6.03138901,3258.8,3258.3,44.0078]
[1736684492180,0.21494,3258.4,3258.3,44.0078]
[1736684492684,0.21494,3258.4,3258.3,3.2078]
[1736684493591,0.21494,3258.4,3258.3,3.42275]
[1736684493794,1.62044,3258.5,3258.3,3.42275]
[1736684493985,0.21494,3258.4,3258.3,3.42275]
[1736684498092,0.4814,3258.5,3258.3,3.2078]
[1736684498400,0.4814,3258.5,3258.4,0.66264]
[1736684500698,0.69634,3258.5,3258.4,0.4477]
[1736684502791,0.69634,3258.5,3258.2,0.21495]
[1736684502792,0.21495,3258.4,3258.2,0.21495]
[1736684503191,0.21495,3258.4,3258.1,1.374]
[1736684503591,0.21495,3258.4,3258.2,0.21496]
[1736684503795,0.21495,3258.4,3258.1,0.68786]
[1736684504106,0.4809,3258.3,3258.1,0.4729]
[1736684504395,0.21496,3258.1,3258.0,3.2078]